[Event "Titled Tuesday Blitz June 20 Late 2023"]
[White "Elsa167"]
[Black "Koellner, Ruben Gideon"]
[BlackFideId "12993093"]
[WhiteElo "2828"]
[BlackElo "2314"]
[Result "1/2-1/2"]
[Round "7"]
[TimeControl "180+2"]
[Date "2023.06.20"]
[WhiteClock "0:00:03"]
[BlackClock "0:00:03"]
[Board "24"]

1. d4 {[%clk 0:03:00]}  d6 {[%clk 0:03:00]} 2. e4 {[%clk 0:03:00]}  Nf6 {[%clk 0:03:00]} 3. f3 {[%clk 0:03:00]}  e5 {[%clk 0:03:00]} 4. dxe5 {[%clk 0:03:01]}  dxe5 {[%clk 0:03:00]} 5. Qxd8+ {[%clk 0:03:02]}  Kxd8 {[%clk 0:03:01]} 6. Bc4 {[%clk 0:03:03]}  Ke8 {[%clk 0:03:02]} 7. Be3 {[%clk 0:03:03]}  c6 {[%clk 0:03:01]} 8. a4 {[%clk 0:03:02]}  a5 {[%clk 0:02:58]} 9. Nd2 {[%clk 0:03:00]}  Na6 {[%clk 0:02:59]} 10. c3 {[%clk 0:02:49]}  Bc5 {[%clk 0:02:57]} 11. Ke2 {[%clk 0:02:49]}  Bxe3 {[%clk 0:02:57]} 12. Kxe3 {[%clk 0:02:50]}  Nc5 {[%clk 0:02:54]} 13. Ne2 {[%clk 0:02:46]}  Ke7 {[%clk 0:02:54]} 14. Rhd1 {[%clk 0:02:40]}  Rd8 {[%clk 0:02:53]} 15. Nc1 {[%clk 0:02:23]}  b6 {[%clk 0:02:41]} 16. Ncb3 {[%clk 0:02:20]}  Nxb3 {[%clk 0:02:40]} 17. Bxb3 {[%clk 0:02:20]}  Ba6 {[%clk 0:02:40]} 18. Nc4 {[%clk 0:01:55]}  Bxc4 {[%clk 0:02:38]} 19. Bxc4 {[%clk 0:01:56]}  Rxd1 {[%clk 0:02:18]} 20. Rxd1 {[%clk 0:01:57]}  Ne8 {[%clk 0:02:15]} 21. g3 {[%clk 0:01:43]}  Nd6 {[%clk 0:02:14]} 22. Bb3 {[%clk 0:01:43]}  Rd8 {[%clk 0:02:10]} 23. Rb1 {[%clk 0:01:37]}  Rb8 {[%clk 0:01:52]} 24. Bc2 {[%clk 0:01:26]}  b5 {[%clk 0:01:38]} 25. axb5 {[%clk 0:01:22]}  Nc4+ {[%clk 0:01:22]} 26. Ke2 {[%clk 0:01:19]}  Rxb5 {[%clk 0:01:21]} 27. Ba4 {[%clk 0:00:45]}  Rxb2+ {[%clk 0:00:47]} 28. Rxb2 {[%clk 0:00:45]}  Nxb2 {[%clk 0:00:48]} 29. Bxc6 {[%clk 0:00:46]}  Nc4 {[%clk 0:00:49]} 30. Kd3 {[%clk 0:00:35]}  Nb6 {[%clk 0:00:48]} 31. f4 {[%clk 0:00:12]}  f6 {[%clk 0:00:44]} 32. h4 {[%clk 0:00:11]}  Kd6 {[%clk 0:00:44]} 33. Be8 {[%clk 0:00:12]}  Kc5 {[%clk 0:00:43]} 34. Bf7 {[%clk 0:00:11]}  h6 {[%clk 0:00:42]} 35. fxe5 {[%clk 0:00:10]}  fxe5 {[%clk 0:00:42]} 36. g4 {[%clk 0:00:08]}  g5 {[%clk 0:00:41]} 37. hxg5 {[%clk 0:00:08]}  hxg5 {[%clk 0:00:41]} 38. Be6 {[%clk 0:00:09]}  Na4 {[%clk 0:00:15]} 39. Bb3 {[%clk 0:00:07]}  Nb2+ {[%clk 0:00:12]} 40. Kc2 {[%clk 0:00:08]}  Nc4 {[%clk 0:00:12]} 41. Kd3 {[%clk 0:00:08]}  Nb6 {[%clk 0:00:08]} 42. Be6 {[%clk 0:00:08]}  Kc6 {[%clk 0:00:08]} 43. Kc2 {[%clk 0:00:06]}  Kd6 {[%clk 0:00:08]} 44. Bf7 {[%clk 0:00:06]}  Kc5 {[%clk 0:00:08]} 45. Kb3 {[%clk 0:00:06]}  Kb5 {[%clk 0:00:08]} 46. Be8+ {[%clk 0:00:06]}  Kc5 {[%clk 0:00:09]} 47. Bf7 {[%clk 0:00:07]}  Kd6 {[%clk 0:00:09]} 48. Bg8 {[%clk 0:00:05]}  Kc6 {[%clk 0:00:08]} 49. Bf7 {[%clk 0:00:05]}  Kc7 {[%clk 0:00:07]} 50. Bg8 {[%clk 0:00:04]}  Kd6 {[%clk 0:00:06]} 51. Ka3 {[%clk 0:00:04]}  Kc5 {[%clk 0:00:03]} 52. Kb3 {[%clk 0:00:04]}  Kb5 {[%clk 0:00:03]} 53. Be6 {[%clk 0:00:03]}  Kc5 {[%clk 0:00:03]} 54. Bf7 {[%clk 0:00:03]} 1/2-1/2


[Site "https://www.chess.com"]

[Event "Titled Tuesday Blitz June 20 Late 2023"]
[White "Harsh Suresh"]
[Black "MaryanKyrychenko"]
[WhiteFideId "45018464"]
[WhiteElo "2209"]
[BlackElo "2552"]
[Result "0-1"]
[Round "7"]
[TimeControl "180+2"]
[Date "2023.06.20"]
[WhiteClock "0:00:00"]
[BlackClock "0:00:13"]
[Board "25"]

1. e4 {[%clk 0:03:00]}  c5 {[%clk 0:02:56]} 2. Nc3 {[%clk 0:02:55]}  a6 {[%clk 0:02:55]} 3. g3 {[%clk 0:02:53]}  b5 {[%clk 0:02:55]} 4. Bg2 {[%clk 0:02:53]}  Bb7 {[%clk 0:02:55]} 5. Nge2 {[%clk 0:02:52]}  b4 {[%clk 0:02:54]} 6. Na4 {[%clk 0:02:52]}  e6 {[%clk 0:02:54]} 7. d4 {[%clk 0:02:52]}  cxd4 {[%clk 0:02:47]} 8. Qxd4 {[%clk 0:02:53]}  Nc6 {[%clk 0:02:45]} 9. Qb6 {[%clk 0:02:53]}  Qxb6 {[%clk 0:02:40]} 10. Nxb6 {[%clk 0:02:52]}  Bc5 {[%clk 0:02:41]} 11. Nxa8 {[%clk 0:02:52]}  Bxa8 {[%clk 0:02:39]} 12. O-O {[%clk 0:02:41]}  e5 {[%clk 0:02:33]} 13. Be3 {[%clk 0:02:36]}  Bxe3 {[%clk 0:02:31]} 14. fxe3 {[%clk 0:02:37]}  Nf6 {[%clk 0:02:27]} 15. a3 {[%clk 0:02:36]}  O-O {[%clk 0:02:24]} 16. Bf3 {[%clk 0:02:07]}  bxa3 {[%clk 0:02:20]} 17. Rxa3 {[%clk 0:02:06]}  Nb4 {[%clk 0:02:20]} 18. c3 {[%clk 0:02:02]}  Nc2 {[%clk 0:02:15]} 19. Ra4 {[%clk 0:01:57]}  Nxe3 {[%clk 0:02:15]} 20. Rfa1 {[%clk 0:01:51]}  g5 {[%clk 0:02:08]} 21. h3 {[%clk 0:01:46]}  Bb7 {[%clk 0:01:50]} 22. Kf2 {[%clk 0:01:44]}  g4 {[%clk 0:01:47]} 23. Bh1 {[%clk 0:01:44]}  Nc2 {[%clk 0:01:35]} 24. Rc1 {[%clk 0:01:44]}  Bc6 {[%clk 0:01:34]} 25. Rxa6 {[%clk 0:01:28]}  Nxe4+ {[%clk 0:01:32]} 26. Kg1 {[%clk 0:01:20]}  Bb5 {[%clk 0:01:23]} 27. Ra5 {[%clk 0:01:20]}  Bxe2 {[%clk 0:01:19]} 28. Bxe4 {[%clk 0:01:19]}  Ne3 {[%clk 0:01:15]} 29. Kf2 {[%clk 0:01:19]}  Nc4 {[%clk 0:01:14]} 30. Rc5 {[%clk 0:01:13]}  d6 {[%clk 0:01:13]} 31. Rc6 {[%clk 0:01:13]}  Nd2 {[%clk 0:00:56]} 32. Bf5 {[%clk 0:00:42]}  Bf3 {[%clk 0:00:37]} 33. Rxd6 {[%clk 0:00:41]}  Nc4 {[%clk 0:00:38]} 34. Rh6 {[%clk 0:00:39]}  Nxb2 {[%clk 0:00:32]} 35. hxg4 {[%clk 0:00:37]}  Bxg4 {[%clk 0:00:27]} 36. Bc2 {[%clk 0:00:27]}  Rc8 {[%clk 0:00:24]} 37. Rb1 {[%clk 0:00:18]}  Nc4 {[%clk 0:00:20]} 38. Rbh1 {[%clk 0:00:14]}  Rd8 {[%clk 0:00:12]} 39. R1h4 {[%clk 0:00:05]}  Rd2+ {[%clk 0:00:12]} 40. Ke1 {[%clk 0:00:05]}  Re2+ {[%clk 0:00:11]} 41. Kf1 {[%clk 0:00:03]}  Ne3+ {[%clk 0:00:11]} 42. Kg1 {[%clk 0:00:02]}  Rg2+ {[%clk 0:00:12]} 43. Kh1 {[%clk 0:00:00]}  Rxc2 {[%clk 0:00:13]} 0-1


[Site "https://www.chess.com"]

[Event "Titled Tuesday Blitz June 20 Late 2023"]
[White "Bluebaum, Matthias"]
[Black "Goryachkina, Aleksandra"]
[WhiteFideId "24651516"]
[BlackFideId "4147103"]
[WhiteElo "2639"]
[BlackElo "2471"]
[Result "1-0"]
[Round "7"]
[TimeControl "180+2"]
[Date "2023.06.20"]
[WhiteClock "0:00:40"]
[BlackClock "0:00:00"]
[Board "26"]

1. d4 {[%clk 0:03:00]}  Nf6 {[%clk 0:02:58]} 2. c4 {[%clk 0:03:01]}  e6 {[%clk 0:02:59]} 3. Nc3 {[%clk 0:03:02]}  d5 {[%clk 0:02:59]} 4. cxd5 {[%clk 0:03:02]}  exd5 {[%clk 0:02:59]} 5. Bf4 {[%clk 0:03:03]}  c6 {[%clk 0:02:56]} 6. e3 {[%clk 0:03:04]}  Bd6 {[%clk 0:02:56]} 7. Bxd6 {[%clk 0:03:04]}  Qxd6 {[%clk 0:02:56]} 8. Bd3 {[%clk 0:03:05]}  O-O {[%clk 0:02:56]} 9. Nge2 {[%clk 0:03:06]}  Re8 {[%clk 0:02:56]} 10. Qd2 {[%clk 0:03:06]}  Nbd7 {[%clk 0:02:56]} 11. f3 {[%clk 0:03:07]}  Nf8 {[%clk 0:02:55]} 12. e4 {[%clk 0:03:07]}  dxe4 {[%clk 0:02:48]} 13. fxe4 {[%clk 0:03:08]}  Qe7 {[%clk 0:02:43]} 14. O-O {[%clk 0:02:59]}  Bg4 {[%clk 0:02:40]} 15. e5 {[%clk 0:02:59]}  N6d7 {[%clk 0:02:38]} 16. Ng3 {[%clk 0:02:54]}  Rad8 {[%clk 0:02:21]} 17. Rae1 {[%clk 0:02:50]}  Nb6 {[%clk 0:02:10]} 18. Qf4 {[%clk 0:02:48]}  Be6 {[%clk 0:02:06]} 19. Nce4 {[%clk 0:02:37]}  Ng6 {[%clk 0:02:06]} 20. Qf2 {[%clk 0:02:32]}  Nxe5 {[%clk 0:01:47]} 21. dxe5 {[%clk 0:02:10]}  Rxd3 {[%clk 0:01:47]} 22. Nf6+ {[%clk 0:02:10]}  gxf6 {[%clk 0:01:39]} 23. exf6 {[%clk 0:02:11]}  Qd6 {[%clk 0:01:34]} 24. Nf5 {[%clk 0:02:09]}  Qd7 {[%clk 0:01:08]} 25. Re4 {[%clk 0:01:49]}  Kh8 {[%clk 0:00:57]} 26. Ng7 {[%clk 0:01:38]}  Rf8 {[%clk 0:00:18]} 27. Rh4 {[%clk 0:01:22]}  Qd5 {[%clk 0:00:15]} 28. Qf4 {[%clk 0:01:09]}  Rd2 {[%clk 0:00:02]} 29. Qg3 {[%clk 0:01:09]}  Rd3 {[%clk 0:00:01]} 30. Qf4 {[%clk 0:00:37]}  Rd2 {[%clk 0:00:01]} 31. Qg3 {[%clk 0:00:38]}  Rd3 {[%clk 0:00:02]} 32. Rxh7+ {[%clk 0:00:39]}  Kxh7 {[%clk 0:00:02]} 33. Qh4+ {[%clk 0:00:40]}  Kg6 {[%clk 0:00:02]} 34. Nxe6 {[%clk 0:00:40]}  fxe6 {[%clk 0:00:02]} 35. Qg4+ {[%clk 0:00:39]}  Qg5 {[%clk 0:00:02]} 36. Qe4+ {[%clk 0:00:40]}  Kf7 {[%clk 0:00:00]} 37. Qh7+ {[%clk 0:00:40]} 1-0


[Site "https://www.chess.com"]

[Event "Titled Tuesday Blitz June 20 Late 2023"]
[White "Rastbod, Ali"]
[Black "Sadhwani, Raunak"]
[WhiteFideId "12567477"]
[BlackFideId "35093487"]
[WhiteElo "2281"]
[BlackElo "2631"]
[Result "0-1"]
[Round "7"]
[TimeControl "180+2"]
[Date "2023.06.20"]
[WhiteClock "0:00:00"]
[BlackClock "0:00:47"]
[Board "27"]

1. d4 {[%clk 0:03:00]}  g6 {[%clk 0:02:59]} 2. e4 {[%clk 0:02:59]}  Bg7 {[%clk 0:02:59]} 3. Nf3 {[%clk 0:02:59]}  d6 {[%clk 0:02:59]} 4. Nc3 {[%clk 0:02:58]}  a6 {[%clk 0:02:59]} 5. a4 {[%clk 0:02:59]}  Nf6 {[%clk 0:02:58]} 6. Be2 {[%clk 0:02:58]}  O-O {[%clk 0:02:59]} 7. O-O {[%clk 0:02:58]}  Nc6 {[%clk 0:03:00]} 8. a5 {[%clk 0:02:34]}  e5 {[%clk 0:02:35]} 9. d5 {[%clk 0:02:22]}  Ne7 {[%clk 0:02:33]} 10. Ne1 {[%clk 0:02:14]}  Ne8 {[%clk 0:02:19]} 11. Be3 {[%clk 0:02:14]}  f5 {[%clk 0:02:19]} 12. f3 {[%clk 0:02:15]}  f4 {[%clk 0:02:19]} 13. Bf2 {[%clk 0:02:15]}  g5 {[%clk 0:02:19]} 14. Na4 {[%clk 0:02:14]}  h5 {[%clk 0:02:14]} 15. c4 {[%clk 0:02:14]}  Rf6 {[%clk 0:02:14]} 16. c5 {[%clk 0:02:13]}  Rg6 {[%clk 0:02:15]} 17. cxd6 {[%clk 0:02:04]}  Nxd6 {[%clk 0:02:16]} 18. Nc5 {[%clk 0:02:05]}  g4 {[%clk 0:02:15]} 19. Ne6 {[%clk 0:01:54]}  Bxe6 {[%clk 0:02:08]} 20. dxe6 {[%clk 0:01:55]}  g3 {[%clk 0:02:04]} 21. Bc5 {[%clk 0:01:53]}  gxh2+ {[%clk 0:02:05]} 22. Kh1 {[%clk 0:01:50]}  Kh7 {[%clk 0:02:05]} 23. Nd3 {[%clk 0:01:37]}  Rxe6 {[%clk 0:02:03]} 24. Nf2 {[%clk 0:01:35]}  Rg6 {[%clk 0:02:02]} 25. Nh3 {[%clk 0:01:32]}  Qg8 {[%clk 0:01:51]} 26. Rf2 {[%clk 0:01:13]}  Rd8 {[%clk 0:01:48]} 27. Qc2 {[%clk 0:01:13]}  Bf6 {[%clk 0:01:47]} 28. Bf1 {[%clk 0:01:13]}  Nc6 {[%clk 0:01:45]} 29. Rd2 {[%clk 0:01:06]}  Kh6 {[%clk 0:01:38]} 30. Rad1 {[%clk 0:00:57]}  Be7 {[%clk 0:01:32]} 31. Rd5 {[%clk 0:00:48]}  Rg3 {[%clk 0:01:27]} 32. Bf2 {[%clk 0:00:39]}  h4 {[%clk 0:01:22]} 33. Kxh2 {[%clk 0:00:26]}  Qe6 {[%clk 0:01:11]} 34. Bxg3 {[%clk 0:00:18]}  hxg3+ {[%clk 0:01:12]} 35. Kh1 {[%clk 0:00:18]}  Nb4 {[%clk 0:01:04]} 36. Qxc7 {[%clk 0:00:17]}  Nxd5 {[%clk 0:01:02]} 37. Rxd5 {[%clk 0:00:17]}  Rc8 {[%clk 0:01:02]} 38. Rxd6 {[%clk 0:00:13]}  Bxd6 {[%clk 0:01:02]} 39. Qxb7 {[%clk 0:00:08]}  Be7 {[%clk 0:00:50]} 40. Qa7 {[%clk 0:00:03]}  Rc1 {[%clk 0:00:48]} 41. Kg1 {[%clk 0:00:00]}  Bc5+ {[%clk 0:00:47]} 0-1


[Site "https://www.chess.com"]

[Event "Titled Tuesday Blitz June 20 Late 2023"]
[White "Sai Krishna G V"]
[Black "Andreikin, Dmitry"]
[WhiteFideId "5028280"]
[BlackFideId "4158814"]
[WhiteElo "2359"]
[BlackElo "2736"]
[Result "0-1"]
[Round "7"]
[TimeControl "180+2"]
[Date "2023.06.20"]
[WhiteClock "0:00:15"]
[BlackClock "0:01:37"]
[Board "28"]

1. e4 {[%clk 0:03:00]}  c5 {[%clk 0:02:59]} 2. Nf3 {[%clk 0:03:01]}  g6 {[%clk 0:02:58]} 3. d4 {[%clk 0:02:59]}  cxd4 {[%clk 0:02:59]} 4. Nxd4 {[%clk 0:03:00]}  Nf6 {[%clk 0:02:58]} 5. Nc3 {[%clk 0:02:58]}  d6 {[%clk 0:02:58]} 6. Be3 {[%clk 0:02:55]}  Nc6 {[%clk 0:02:57]} 7. f3 {[%clk 0:02:51]}  h5 {[%clk 0:02:56]} 8. Qd2 {[%clk 0:02:49]}  Nxd4 {[%clk 0:02:55]} 9. Bxd4 {[%clk 0:02:46]}  Bh6 {[%clk 0:02:55]} 10. Be3 {[%clk 0:02:46]}  Bxe3 {[%clk 0:02:54]} 11. Qxe3 {[%clk 0:02:47]}  Be6 {[%clk 0:02:54]} 12. Bb5+ {[%clk 0:02:38]}  Kf8 {[%clk 0:02:54]} 13. O-O {[%clk 0:02:28]}  Qa5 {[%clk 0:02:49]} 14. f4 {[%clk 0:02:25]}  Rc8 {[%clk 0:02:44]} 15. f5 {[%clk 0:01:57]}  gxf5 {[%clk 0:02:43]} 16. exf5 {[%clk 0:01:51]}  Bc4 {[%clk 0:02:43]} 17. Bxc4 {[%clk 0:01:26]}  Rxc4 {[%clk 0:02:44]} 18. Rae1 {[%clk 0:01:22]}  Qc5 {[%clk 0:02:43]} 19. Rf3 {[%clk 0:01:16]}  Rg8 {[%clk 0:02:41]} 20. Qxc5 {[%clk 0:01:12]}  Rxc5 {[%clk 0:02:40]} 21. Rfe3 {[%clk 0:01:12]}  Rc7 {[%clk 0:02:33]} 22. Nb5 {[%clk 0:01:11]}  Rxc2 {[%clk 0:02:33]} 23. g3 {[%clk 0:01:04]}  Rxb2 {[%clk 0:02:20]} 24. Nxa7 {[%clk 0:01:03]}  Kg7 {[%clk 0:02:06]} 25. a4 {[%clk 0:00:21]}  Ra8 {[%clk 0:02:05]} 26. Nb5 {[%clk 0:00:20]}  Rxa4 {[%clk 0:02:06]} 27. Nc7 {[%clk 0:00:20]}  Raa2 {[%clk 0:02:03]} 28. Rxe7 {[%clk 0:00:20]}  Rg2+ {[%clk 0:02:03]} 29. Kh1 {[%clk 0:00:20]}  Rxh2+ {[%clk 0:02:02]} 30. Kg1 {[%clk 0:00:21]}  Rag2+ {[%clk 0:01:50]} 31. Kf1 {[%clk 0:00:21]}  Rxg3 {[%clk 0:01:40]} 32. Ne6+ {[%clk 0:00:19]}  Kh6 {[%clk 0:01:38]} 33. Rxf7 {[%clk 0:00:19]}  Ng4 {[%clk 0:01:37]} 34. Re2 {[%clk 0:00:15]}  Rh1# {[%clk 0:01:37]} 0-1


[Site "https://www.chess.com"]

[Event "Titled Tuesday Blitz June 20 Late 2023"]
[White "Eljanov, Pavel"]
[Black "Ashraf, Artin"]
[WhiteFideId "14102951"]
[BlackFideId "22514805"]
[WhiteElo "2598"]
[BlackElo "2224"]
[Result "1-0"]
[Round "7"]
[TimeControl "180+2"]
[Date "2023.06.20"]
[WhiteClock "0:01:03"]
[BlackClock "0:00:00"]
[Board "31"]

1. d4 {[%clk 0:03:00]}  Nf6 {[%clk 0:02:57]} 2. c4 {[%clk 0:03:01]}  e6 {[%clk 0:02:56]} 3. Nc3 {[%clk 0:03:01]}  d5 {[%clk 0:02:54]} 4. cxd5 {[%clk 0:03:01]}  exd5 {[%clk 0:02:55]} 5. Bg5 {[%clk 0:03:02]}  c6 {[%clk 0:02:55]} 6. e3 {[%clk 0:03:02]}  Bf5 {[%clk 0:02:49]} 7. Qb3 {[%clk 0:03:01]}  Qb6 {[%clk 0:02:34]} 8. Bxf6 {[%clk 0:03:01]}  gxf6 {[%clk 0:02:29]} 9. Kd2 {[%clk 0:03:01]}  Nd7 {[%clk 0:02:26]} 10. Bd3 {[%clk 0:03:01]}  Qxb3 {[%clk 0:02:17]} 11. axb3 {[%clk 0:03:00]}  Bg6 {[%clk 0:02:18]} 12. Nf3 {[%clk 0:02:59]}  Bd6 {[%clk 0:02:17]} 13. Nh4 {[%clk 0:02:58]}  Ke7 {[%clk 0:02:12]} 14. f4 {[%clk 0:02:54]}  Bxd3 {[%clk 0:01:58]} 15. Kxd3 {[%clk 0:02:54]}  a6 {[%clk 0:01:48]} 16. g4 {[%clk 0:02:22]}  Rag8 {[%clk 0:01:32]} 17. Nf5+ {[%clk 0:02:12]}  Ke6 {[%clk 0:01:31]} 18. Nh6 {[%clk 0:02:12]}  Rg7 {[%clk 0:01:30]} 19. h4 {[%clk 0:02:04]}  Nb6 {[%clk 0:01:01]} 20. Raf1 {[%clk 0:02:01]}  Nc8 {[%clk 0:00:50]} 21. e4 {[%clk 0:01:48]}  dxe4+ {[%clk 0:00:38]} 22. Nxe4 {[%clk 0:01:49]}  Be7 {[%clk 0:00:25]} 23. Re1 {[%clk 0:01:39]}  Kd7 {[%clk 0:00:23]} 24. Nf5 {[%clk 0:01:39]}  Rxg4 {[%clk 0:00:16]} 25. Nxe7 {[%clk 0:01:39]}  Rxf4 {[%clk 0:00:10]} 26. Nc5+ {[%clk 0:01:37]}  Kd6 {[%clk 0:00:08]} 27. Nxb7+ {[%clk 0:01:32]}  Kc7 {[%clk 0:00:08]} 28. Nxc8 {[%clk 0:01:31]}  Rxc8 {[%clk 0:00:06]} 29. Nc5 {[%clk 0:01:27]}  Rd8 {[%clk 0:00:07]} 30. Re7+ {[%clk 0:01:26]}  Kc8 {[%clk 0:00:06]} 31. Re4 {[%clk 0:01:26]}  Rf3+ {[%clk 0:00:06]} 32. Kc4 {[%clk 0:01:26]}  Rf2 {[%clk 0:00:07]} 33. Kc3 {[%clk 0:01:20]}  f5 {[%clk 0:00:05]} 34. Re7 {[%clk 0:01:11]}  Rg8 {[%clk 0:00:01]} 35. Rhe1 {[%clk 0:01:07]}  Rg3+ {[%clk 0:00:01]} 36. Kb4 {[%clk 0:01:03]}  f4 {[%clk 0:00:00]} 37. Re8+ {[%clk 0:01:03]} 1-0


[Site "https://www.chess.com"]

[Event "Titled Tuesday Blitz June 20 Late 2023"]
[White "Martic, Ivan"]
[Black "Tari, Aryan"]
[WhiteFideId "929301"]
[BlackFideId "1510045"]
[WhiteElo "2346"]
[BlackElo "2586"]
[Result "0-1"]
[Round "7"]
[TimeControl "180+2"]
[Date "2023.06.20"]
[WhiteClock "0:00:36"]
[BlackClock "0:01:27"]
[Board "32"]

1. d4 {[%clk 0:02:55]}  d5 {[%clk 0:02:56]} 2. c4 {[%clk 0:02:53]}  e6 {[%clk 0:02:53]} 3. Nc3 {[%clk 0:02:53]}  c5 {[%clk 0:02:51]} 4. cxd5 {[%clk 0:02:52]}  cxd4 {[%clk 0:02:51]} 5. Qa4+ {[%clk 0:02:47]}  Bd7 {[%clk 0:02:51]} 6. Qxd4 {[%clk 0:02:47]}  exd5 {[%clk 0:02:51]} 7. Nf3 {[%clk 0:02:33]}  Nf6 {[%clk 0:02:49]} 8. Bg5 {[%clk 0:02:19]}  Nc6 {[%clk 0:02:47]} 9. Qd3 {[%clk 0:02:10]}  Bb4 {[%clk 0:02:43]} 10. e3 {[%clk 0:02:09]}  h6 {[%clk 0:02:42]} 11. Bh4 {[%clk 0:02:02]}  g5 {[%clk 0:02:41]} 12. Bg3 {[%clk 0:02:02]}  Ne4 {[%clk 0:02:41]} 13. Be2 {[%clk 0:02:01]}  Bf5 {[%clk 0:02:41]} 14. Nd4 {[%clk 0:01:49]}  Bxc3+ {[%clk 0:02:18]} 15. bxc3 {[%clk 0:01:46]}  Nxg3 {[%clk 0:02:19]} 16. Nxf5 {[%clk 0:01:45]}  Nxh1 {[%clk 0:02:19]} 17. Rb1 {[%clk 0:01:36]}  Qf6 {[%clk 0:02:11]} 18. Rxb7 {[%clk 0:01:31]}  O-O {[%clk 0:02:10]} 19. g4 {[%clk 0:01:15]}  Rab8 {[%clk 0:01:42]} 20. Rc7 {[%clk 0:01:10]}  Ne5 {[%clk 0:01:41]} 21. Qd4 {[%clk 0:00:59]}  Rb1+ {[%clk 0:01:36]} 22. Kd2 {[%clk 0:00:57]}  Rfb8 {[%clk 0:01:29]} 23. Bd3 {[%clk 0:00:36]}  Nf3+ {[%clk 0:01:27]} 0-1


[Site "https://www.chess.com"]

[Event "Titled Tuesday Blitz June 20 Late 2023"]
[White "Sanal, Vahap"]
[Black "Bernabeu Lopez, Carlos Javier"]
[WhiteFideId "6300545"]
[BlackFideId "2235366"]
[WhiteElo "2606"]
[BlackElo "2344"]
[Result "1-0"]
[Round "7"]
[TimeControl "180+2"]
[Date "2023.06.20"]
[WhiteClock "0:01:44"]
[BlackClock "0:02:09"]
[Board "33"]

1. e4 {[%clk 0:03:00]}  e5 {[%clk 0:02:59]} 2. Nf3 {[%clk 0:03:00]}  Nf6 {[%clk 0:02:59]} 3. Nxe5 {[%clk 0:03:00]}  Nxe4 {[%clk 0:02:59]} 4. Qe2 {[%clk 0:02:59]}  Qe7 {[%clk 0:02:59]} 5. Qxe4 {[%clk 0:02:59]}  d6 {[%clk 0:02:59]} 6. d4 {[%clk 0:02:59]}  dxe5 {[%clk 0:03:00]} 7. dxe5 {[%clk 0:02:59]}  Nc6 {[%clk 0:02:59]} 8. Nc3 {[%clk 0:03:00]}  Qxe5 {[%clk 0:03:00]} 9. Qxe5+ {[%clk 0:03:00]}  Nxe5 {[%clk 0:03:01]} 10. Bf4 {[%clk 0:03:01]}  Bd6 {[%clk 0:03:01]} 11. Bg3 {[%clk 0:03:01]}  f6 {[%clk 0:03:02]} 12. Nb5 {[%clk 0:03:01]}  Be6 {[%clk 0:03:00]} 13. Nxd6+ {[%clk 0:03:01]}  cxd6 {[%clk 0:03:01]} 14. O-O-O {[%clk 0:02:59]}  O-O-O {[%clk 0:03:02]} 15. b3 {[%clk 0:02:57]}  Kc7 {[%clk 0:03:02]} 16. Be2 {[%clk 0:02:56]}  a6 {[%clk 0:03:02]} 17. Rhe1 {[%clk 0:02:56]}  Rhe8 {[%clk 0:03:03]} 18. Bf1 {[%clk 0:02:56]}  Nc6 {[%clk 0:03:03]} 19. Kb2 {[%clk 0:02:56]}  Bf7 {[%clk 0:03:03]} 20. Rxe8 {[%clk 0:02:56]}  Bxe8 {[%clk 0:03:04]} 21. h4 {[%clk 0:02:51]}  Bh5 {[%clk 0:03:03]} 22. f3 {[%clk 0:02:51]}  Ne5 {[%clk 0:03:02]} 23. Be1 {[%clk 0:02:50]}  Bf7 {[%clk 0:03:01]} 24. Ba5+ {[%clk 0:02:49]}  b6 {[%clk 0:03:01]} 25. Be1 {[%clk 0:02:49]}  a5 {[%clk 0:03:02]} 26. a4 {[%clk 0:02:49]}  Be6 {[%clk 0:02:59]} 27. Bb5 {[%clk 0:02:40]}  Bd7 {[%clk 0:02:58]} 28. Be2 {[%clk 0:02:39]}  Bc6 {[%clk 0:02:57]} 29. Bf2 {[%clk 0:02:37]}  Bb7 {[%clk 0:02:57]} 30. Bf1 {[%clk 0:02:36]}  Ra8 {[%clk 0:02:54]} 31. Bd4 {[%clk 0:02:34]}  Ba6 {[%clk 0:02:53]} 32. c4 {[%clk 0:02:27]}  Bb7 {[%clk 0:02:53]} 33. Re1 {[%clk 0:02:25]}  Re8 {[%clk 0:02:43]} 34. Kc3 {[%clk 0:02:25]}  Bc6 {[%clk 0:02:42]} 35. Bf2 {[%clk 0:02:22]}  Nf7 {[%clk 0:02:41]} 36. Rxe8 {[%clk 0:02:22]}  Bxe8 {[%clk 0:02:41]} 37. Bd3 {[%clk 0:02:22]}  h6 {[%clk 0:02:37]} 38. Bg6 {[%clk 0:02:21]}  Kc6 {[%clk 0:02:35]} 39. Bd4 {[%clk 0:02:15]}  Kc7 {[%clk 0:02:35]} 40. Kd2 {[%clk 0:02:10]}  Kc6 {[%clk 0:02:35]} 41. Ke3 {[%clk 0:02:09]}  Kc7 {[%clk 0:02:26]} 42. g4 {[%clk 0:02:09]}  Kc6 {[%clk 0:02:26]} 43. f4 {[%clk 0:02:09]}  Kc7 {[%clk 0:02:27]} 44. g5 {[%clk 0:02:05]}  hxg5 {[%clk 0:02:26]} 45. fxg5 {[%clk 0:02:05]}  fxg5 {[%clk 0:02:27]} 46. h5 {[%clk 0:02:03]}  Kd7 {[%clk 0:02:16]} 47. Bxb6 {[%clk 0:01:51]}  Ke6 {[%clk 0:02:11]} 48. Bxa5 {[%clk 0:01:49]}  Bc6 {[%clk 0:02:12]} 49. Bc3 {[%clk 0:01:49]}  Ne5 {[%clk 0:02:12]} 50. Bxe5 {[%clk 0:01:47]}  Kxe5 {[%clk 0:02:13]} 51. a5 {[%clk 0:01:45]}  g4 {[%clk 0:02:13]} 52. b4 {[%clk 0:01:46]}  g3 {[%clk 0:02:14]} 53. b5 {[%clk 0:01:47]}  g2 {[%clk 0:02:14]} 54. Kf2 {[%clk 0:01:46]}  Ba8 {[%clk 0:02:13]} 55. Bf7 {[%clk 0:01:44]}  Kd4 {[%clk 0:02:12]} 56. Bd5 {[%clk 0:01:44]}  Bxd5 {[%clk 0:02:11]} 57. cxd5 {[%clk 0:01:45]}  Kc5 {[%clk 0:02:09]} 58. b6 {[%clk 0:01:44]} 1-0


[Site "https://www.chess.com"]